[Event "21st IPCA World Championship 2022"]
[Site "Ashdod"]
[Date "2022.05.09"]
[Round "1.12"]
[White "Freiberg, Doron"]
[Black "Gerasimova, Svetlana"]
[Result "0-1"]
[ECO "E67"]
[WhiteElo "1244"]
[BlackElo "1906"]
[Annotator "TA"]
[PlyCount "118"]
[EventDate "2022.05.09"]
[EventType "swiss"]
[EventCountry "ISR"]
[SourceTitle "playchess.com"]
[Source "ChessBase"]
[SourceQuality "1"]
[TimeControl "5400+30"]

{[%evp 14,118,40,11,0,0,0,0,18,21,33,27,39,30,77,60,72,-10,-8,-43,-36,-47,-8,-15,47,41,44,50,61,-6,0,-65,-66,-75,-77,-83,-64,-80,-72,-85,-63,-70,-55,-75,-50,-96,0,-86,-33,-70,-35,-39,-34,-68,-33,-52,-57,-65,-27,-67,-46,-47,-37,-49,-17,-82,-24,-89,-89,-92,-87,-90,-90,-102,-47,-89,-67,-70,-41,-75,-80,-109,-108,-411,-418,-468,-458,-416,-380,-870,-858,-29954,-815,-696,-554,-808,-585,-1427,-1371,-5173,-1756,-29989,-29990,-29993,-29994,-29995,-29996]} 1. d4 {[%emt 0:00:06]} Nf6 {[%emt 0:00:06]} 2. Nf3 {[%emt 0:00:09]} g6 {[%emt 0:00:06]} 3. c4 {[%emt 0:00:32]} Bg7 {[%emt 0:00:07]} 4. g3 {[%emt 0:00:08]} O-O {[%emt 0:00:24]} 5. Bg2 {[%emt 0:00:08]} d6 {[%emt 0:01:15]} 6. O-O {[%emt 0:01:02]} Nbd7 {[%emt 0:00:59]} 7. Nc3 {[%emt 0:03:07]} c6 {[%emt 0:00:48]} 8. Re1 {[%emt 0:02:16]} e5 {[%emt 0:02:49] E67: King's Indian: Fianchetto: 6...Nbd7.} 9. dxe5 {[%emt 0:04:00]} dxe5 {[%emt 0:00:06]} 10. e4 {[%emt 0:04:53]} a5 {[%emt 0:06:04] The position is equal.} 11. b3 {[%emt 0:06:06] [#]} Qe7 $146 {[%emt 0:10:05]} ({Predecessor:} 11... Re8 12. Ba3 Bf8 13. Bxf8 Kxf8 14. Qd6+ Qe7 15. Rad1 Kg7 16. Na4 c5 17. Nc3 Qxd6 18. Rxd6 {½-½ (36) Groiss,W (1807)-Widner,S (1963) Innsbruck 2019}) 12. Bb2 {[%emt 0:07:33]} Rd8 {[%emt 0:03:26]} 13. Qc2 {[%emt 0:03:54]} Nf8 {[%emt 0:02:18]} (13... b6 $11) 14. Na4 {[%emt 0:02:39]} (14. Nxe5 {is interesting.} Qxe5 15. Nd5 Rxd5 16. Bxe5 Rxe5 17. Rad1) 14... N6d7 {[%emt 0:00:39]} 15. Nc3 {[%emt 0:04:26]} (15. c5 $16) 15... Nc5 $11 {[%emt 0:04:27]} 16. Rad1 {[%emt 0:07:40]} (16. Ba3 $5 {[%cal Rc3a4]}) 16... Bg4 {[%emt 0:01:50]} 17. Ba3 {[%emt 0:03:21]} Bxf3 {[%emt 0:04:56]} 18. Bxf3 {[%emt 0:00:23]} b6 {[%emt 0:01:07]} ({Black should try} 18... Nfe6 $11 19. Na4 Bf8) 19. Na4 $1 $14 {[%emt 0:02:37]} Qa7 {[%emt 0:00:27]} 20. Nxc5 {[%emt 0:45:30]} bxc5 {[%emt 0:00:08]} 21. Re3 {[%emt 0:00:00]} (21. Rxd8 $14 Rxd8 22. Bg4) 21... Ne6 $11 {[%emt 0:00:31]} 22. Bb2 {[%emt 0:00:00]} (22. Rxd8+ $1 $11 Rxd8 23. Rd3) 22... Nd4 $15 {[%emt 0:01:49]} 23. Bxd4 {[%emt 0:00:00]} cxd4 {[%emt 0:00:36]} 24. Red3 {[%emt 0:00:00]} Qc5 {[%emt 0:01:48]} 25. Qd2 {[%emt 0:00:00]} a4 {[%emt 0:05:11]} 26. Rb1 {[%emt 0:00:00]} Rdb8 {[%emt 0:00:28]} 27. Bd1 {[%emt 0:00:00]} axb3 {[%emt 0:01:37]} 28. Bxb3 {[%emt 0:00:00]} Qa3 {[%emt 0:02:17]} 29. Rb2 {[%emt 0:00:00]} (29. c5 $15 Qxc5 30. Rc1) 29... Ra5 {[%emt 0:05:08]} ({Black should play} 29... c5 $17 30. Rb1 Qa6) 30. Rf3 {[%emt 0:00:00] Against f5} (30. c5 $1 $11 {keeps the balance.} Kf8 31. f4) 30... Rc5 {[%emt 0:02:21]} ({Better is} 30... c5 $17 {[%cal Of7f5] And now ...f5! would win.} 31. Qe2 Raa8) 31. Rc2 {[%emt 0:00:00]} Rb4 {[%emt 0:05:15]} 32. Kg2 {[%emt 0:00:00]} Rb7 {[%emt 0:06:12]} 33. Qg5 {[%emt 0:00:00]} Rd7 {[%emt 0:00:11]} 34. Qg4 {[%emt 0:00:00]} Qa7 {[%emt 0:01:15]} 35. Rd3 {[%emt 0:00:00]} Bf8 {[%emt 0:02:26]} 36. Rcd2 {[%emt 0:00:00]} Kg7 {[%emt 0:01:36]} (36... h5 {with more complications.} 37. Qg5 Be7 38. Qh6 Qb8) 37. h4 {[%emt 0:00:00]} h5 {[%emt 0:00:14]} 38. Qd1 {[%emt 0:00:00]} Ra5 {[%emt 0:03:14]} 39. Rf3 {[%emt 0:00:00]} (39. c5 $11 {remains equal.}) 39... Bc5 {[%emt 0:00:55]} (39... c5 $17) 40. Rdd3 {[%emt 0:00:00] [#]} (40. g4 $1 $11) 40... Rd6 $1 $17 {[%emt 0:00:40]} 41. Qe1 {[%emt 0:00:50]} Ra3 {[%emt 0:00:43]} 42. Rd1 {[%emt 0:00:39]} Qe7 {[%emt 0:00:26]} 43. Qd2 {[%emt 0:01:32]} Rf6 {[%emt 0:01:10]} (43... Rd8 $17 44. Qc2 Qd7) 44. Qd3 {[%emt 0:01:06]} Rxf3 {[%emt 0:00:34]} 45. Qxf3 {[%emt 0:00:13]} Qf6 {[%emt 0:00:23]} 46. Rd3 {[%emt 0:00:27]} Qxf3+ {[%emt 0:00:26]} 47. Kxf3 {[%emt 0:00:21][%mdl 4096] Endgame KRB-KRB} f5 {[%emt 0:00:25]} 48. exf5 $2 {[%emt 0:00:56][%mdl 8192] This move loses the game for White.} (48. Rd1 $17) 48... gxf5 $19 {[%emt 0:00:07] aiming for ...e4+.} 49. Kg2 {[%emt 0:00:21]} e4 {[%emt 0:00:12] Prevents Rf3.} 50. Rd1 {[%emt 0:00:18]} Kf6 {[%emt 0:00:19]} 51. f4 $2 {[%emt 0:00:36]} (51. Rd2) 51... d3 {[%emt 0:00:47]} 52. Rd2 {[%emt 0:03:16]} Bb4 {[%emt 0:00:10]} (52... e3 $142 53. Rxd3 {[#]} Rxa2+ $3 {[%mdl 512]} 54. Kh3 e2 55. Rd1 exd1=Q 56. Bxd1 Bg1 57. g4 Bh2 58. gxf5 Kxf5 59. Bb3 Rf2 60. Bc2+ Rxc2 61. c5 Ke4 62. f5 Bc7 63. f6 Rh2#) 53. Rd1 {[%emt 0:00:11]} Ra8 {[%emt 0:00:29]} 54. Kf2 {[%emt 0:00:20]} Bc5+ {[%emt 0:00:17]} 55. Ke1 {[%emt 0:01:10]} Rd8 {[%emt 0:00:13] Threatens to win with ...e3.} 56. Kf1 {[%emt 0:00:48]} e3 {[%emt 0:00:56] ( -> ...e2+)} 57. Rb1 {[%emt 0:01:06]} e2+ {[%emt 0:00:45] Black mates.} 58. Kg2 {[%emt 0:00:13]} d2 {[%emt 0:00:00]} 59. Rb2 {[%emt 0:00:51]} e1=Q {[%emt 0:25:47] Weighted Error Value: White=0.83/Black=0.32} 0-1